fUST/lending_fUST_20240914
["ID","MTS","AMOUNT","RATE_DAILY","PERIOD"]
[338128896,1726288257784,-503.36965417,0.00011506,2]
[338128897,1726288257793,-500.0,0.00011506,2]
[338128898,1726288257803,-500.0,0.00011506,2]
[338128899,1726288257812,-500.0,0.00011506,2]
[338128900,1726288257823,-500.0,0.00011506,2]
[338128901,1726288257832,-500.0,0.00011506,2]
[338128902,1726288257842,-500.0,0.00011506,2]
[338128903,1726288257851,-500.0,0.00011506,2]
[338128904,1726288257860,-502.11909549,0.00011506,2]
[338128905,1726288257869,-506.2456293,0.00011506,2]
[338128906,1726288257877,-500.0,0.00011506,2]
[338128907,1726288257887,-292.12426842,0.00011506,2]
[338128908,1726288257896,-501.27322743,0.00011506,2]
[338128909,1726288257909,-500.0,0.00011506,2]
[338128910,1726288257918,-500.0,0.00011506,2]
[338128911,1726288257926,-517.132265,0.00011506,2]
[338128912,1726288257936,-500.0,0.00011506,2]
[338128913,1726288257945,-500.0,0.00011506,2]
[338128914,1726288257954,-501.47836458,0.00011506,2]
[338128915,1726288257963,-500.0,0.00011506,2]
[338128916,1726288257971,-500.0,0.00011506,2]
[338128917,1726288257980,-500.0,0.00011506,2]
[338128918,1726288257989,-500.0,0.00011506,2]
[338128919,1726288257998,-500.0,0.00011506,2]
[338128920,1726288258007,-500.0,0.00011506,2]
[338128921,1726288258016,-500.0,0.00011506,2]
[338128922,1726288258025,-478.08824813,0.00011506,2]
[338128923,1726288258034,-500.0,0.00011506,2]
[338128924,1726288258044,-502.12339566,0.00011506,2]
[338128925,1726288258054,-508.10040136,0.00011506,2]
[338128926,1726288258064,-500.0,0.00011506,2]
[338128927,1726288258074,-502.23400361,0.00011506,2]
[338128928,1726288258083,-500.0,0.00011506,2]
[338128929,1726288258092,-500.0,0.00011506,2]
[338128930,1726288258101,-500.0,0.00011506,2]
[338128931,1726288258111,-500.0,0.00011506,2]
[338128932,1726288258120,-501.76587833,0.00011506,2]
[338128933,1726288258129,-500.0,0.00011506,2]
[338128934,1726288258138,-503.09471523,0.00011506,2]
[338128935,1726288258147,-500.0,0.00011506,2]
[338128936,1726288258158,-500.0,0.00011506,2]
[338128937,1726288258169,-500.0,0.00011506,2]
[338128938,1726288258179,-500.0,0.00011506,2]
[338128939,1726288258188,-500.0,0.00011506,2]
[338128940,1726288258197,-500.0,0.00011506,2]
[338128941,1726288258206,-500.0,0.00011506,2]
[338128942,1726288258215,-580.8771972,0.00011506,2]
[338128943,1726288258226,-500.0,0.00011506,2]
[338128944,1726288258235,-500.0,0.00011506,2]
[338128945,1726288258244,-500.0,0.00011506,2]
[338128946,1726288258253,-500.0,0.00011506,2]
[338128947,1726288258262,-500.0,0.00011506,2]
[338128948,1726288258272,-500.0,0.00011506,2]
[338128949,1726288258281,-500.0,0.00011506,2]
[338128950,1726288258290,-500.0,0.00011506,2]
[338128951,1726288258299,-179.712,0.00011506,2]
[338128952,1726288258308,-187.31720901,0.00011506,2]
[338128953,1726288258317,-505.31216729,0.00011506,2]
[338128954,1726288258326,-500.0,0.00011506,2]
[338128955,1726288258335,-500.0,0.00011506,2]
[338128956,1726288258344,-500.0,0.00011506,2]
[338128957,1726288258353,-500.0,0.00011506,2]
[338128958,1726288258363,-500.0,0.00011506,2]
[338128959,1726288258372,-500.0,0.00011506,2]
[338128960,1726288258381,-500.0,0.00011506,2]
[338128961,1726288258390,-500.0,0.00011506,2]
[338128962,1726288258399,-500.0,0.00011506,2]
[338128963,1726288258409,-501.3781389,0.00011506,2]
[338128964,1726288258419,-500.0,0.00011506,2]
[338128965,1726288258428,-500.0,0.00011506,2]
[338128966,1726288258437,-501.70352211,0.00011506,2]
[338128967,1726288258446,-500.0,0.00011506,2]
[338128968,1726288258455,-500.8526119,0.00011506,2]
[338128969,1726288258464,-500.0,0.00011506,2]
[338128970,1726288258473,-500.0,0.00011506,2]
[338128971,1726288258482,-502.04601501,0.00011506,2]
[338128972,1726288258492,-500.0,0.00011506,2]
[338128973,1726288258501,-500.0,0.00011506,2]
[338128974,1726288258510,-500.0,0.00011506,2]
[338128975,1726288258519,-500.0,0.00011506,2]
[338128976,1726288258528,-500.0,0.00011506,2]
[338128977,1726288258537,-501.12616769,0.00011506,2]
[338128978,1726288258546,-500.0,0.00011506,2]
[338128979,1726288258555,-500.0,0.00011506,2]
[338128980,1726288258564,-500.0,0.00011506,2]
[338128981,1726288258573,-500.0,0.00011506,2]
[338128982,1726288258583,-500.0,0.00011506,2]
[338128983,1726288258592,-500.0,0.00011506,2]
[338128984,1726288258603,-501.56204454,0.00011506,2]
[338128985,1726288258615,-500.0,0.00011506,2]
[338128986,1726288258626,-500.0,0.00011506,2]
[338128987,1726288258636,-501.90834421,0.00011506,2]
[338128988,1726288258648,-500.0,0.00011506,2]
[338128989,1726288258659,-502.88938056,0.00011506,2]
[338128990,1726288258668,-500.0,0.00011506,2]
[338128991,1726288258677,-500.0,0.00011506,2]
[338128992,1726288258686,-500.0,0.00011506,2]
[338128993,1726288258696,-500.0,0.00011506,2]
[338128994,1726288258705,-500.0,0.00011506,2]
[338128995,1726288258715,-501.57396426,0.00011506,2]
[338128996,1726288258724,-500.0,0.00011506,2]
[338128997,1726288258733,-500.0,0.00011506,2]
[338128998,1726288258742,-500.0,0.00011506,2]
[338128999,1726288258751,-500.29667237,0.00011506,2]
[338129000,1726288258760,-500.0,0.00011506,2]
[338129001,1726288258769,-152.241122,0.00011506,2]
[338129002,1726288258778,-500.0,0.00011506,2]
[338129003,1726288258787,-500.0,0.00011506,2]
[338129004,1726288258796,-503.80522659,0.00011506,2]
[338129005,1726288258805,-500.0,0.00011506,2]
[338129006,1726288258814,-500.0,0.00011506,2]
[338129007,1726288258824,-500.0,0.00011506,2]
[338129008,1726288258833,-500.0,0.00011506,2]
[338129009,1726288258842,-500.0,0.00011506,2]
[338129010,1726288258852,-500.0,0.00011506,2]
[338129011,1726288258861,-419.23915899,0.00011506,2]
[338129012,1726288258870,-500.0,0.00011506,2]
[338129013,1726288258879,-620.19,0.00011506,2]
[338129014,1726288258888,-500.0,0.00011506,2]
[338129015,1726288258897,-500.0,0.00011506,2]
[338129016,1726288258907,-500.0,0.00011506,2]
[338129017,1726288258916,-500.0,0.00011506,2]
[338129018,1726288258925,-494.93144899,0.00011506,2]
[338129019,1726288258934,-502.87465303,0.00011506,2]
[338129020,1726288258944,-500.0,0.00011506,2]
[338129021,1726288258953,-500.0,0.00011506,2]
[338129022,1726288258962,-500.0,0.00011506,2]
[338129023,1726288258970,-537.05770997,0.00011506,2]
[338129024,1726288258979,-500.0,0.00011506,2]
[338129025,1726288258988,-500.0,0.00011506,2]
[338129026,1726288258998,-500.0,0.00011506,2]
[338129027,1726288259009,-504.23492392,0.00011506,2]
[338129028,1726288259018,-500.0,0.00011506,2]
[338129029,1726288259029,-500.0,0.00011506,2]
[338129030,1726288259038,-500.0,0.00011506,2]
[338129031,1726288259048,-500.0,0.00011506,2]
[338129032,1726288259059,-500.0,0.00011506,2]
[338129033,1726288259070,-500.0,0.00011506,2]
[338129034,1726288259081,-500.0,0.00011506,2]
[338129035,1726288259091,-151.0,0.00011506,2]
[338129036,1726288259102,-500.0,0.00011506,2]
[338129037,1726288259113,-510.36792787,0.00011506,2]
[338129038,1726288259123,-533.07,0.00011506,2]
[338129039,1726288259133,-2896.96,0.00011506,2]
[338129040,1726288259143,-500.0,0.00011506,2]
[338129041,1726288259154,-500.0,0.00011506,2]
[338129042,1726288259164,-500.0,0.00011506,2]
[338129043,1726288259175,-505.2279687,0.00011506,2]
[338129044,1726288259184,-500.0,0.00011506,2]
[338129045,1726288259195,-500.0,0.00011506,2]
[338129046,1726288259206,-500.0,0.00011506,2]
[338129047,1726288259216,-500.0,0.00011506,2]
[338129048,1726288259225,-500.0,0.00011506,2]
[338129049,1726288259235,-500.0,0.00011506,2]
[338129050,1726288259245,-500.0,0.00011506,2]
[338129051,1726288259254,-155.574106,0.00011506,2]
[338129052,1726288259263,-151.0,0.00011506,2]
[338129053,1726288259273,-151.0,0.00011506,2]
[338129054,1726288259282,-500.0,0.00011506,2]
[338129055,1726288259292,-500.0,0.00011506,2]
[338129056,1726288259301,-500.9321221,0.00011506,2]
[338129057,1726288259311,-601.19257564,0.00011506,2]
[338129058,1726288259321,-504.51447117,0.00011506,2]
[338129059,1726288259330,-502.35663836,0.00011506,2]
[338129060,1726288259340,-614.54,0.00011506,2]
[338129061,1726288259349,-500.0,0.00011506,2]
[338129062,1726288259358,-500.0,0.00011506,2]
[338129063,1726288259368,-500.0,0.00011506,2]
[338129064,1726288259377,-500.0,0.00011506,2]
[338129065,1726288259386,-500.0,0.00011506,2]
[338129066,1726288259396,-500.0,0.00011506,2]
[338129067,1726288259405,-500.0,0.00011506,2]
[338129068,1726288259414,-500.0,0.00011506,2]
[338129069,1726288259423,-500.0,0.00011506,2]
[338129070,1726288259433,-500.0,0.00011506,2]
[338129071,1726288259442,-500.0,0.00011506,2]
[338129072,1726288259452,-511.13847701,0.00011506,2]
[338129073,1726288259461,-500.0,0.00011506,2]
[338129074,1726288259470,-500.0,0.00011506,2]
[338129075,1726288259479,-627.53,0.00011506,2]
[338129076,1726288259489,-500.0,0.00011506,2]
[338129077,1726288259498,-582.99,0.00011506,2]
[338129078,1726288259508,-500.0,0.00011506,2]
[338129079,1726288259517,-501.22480224,0.00011506,2]
[338129080,1726288259526,-500.0,0.00011506,2]
[338129081,1726288259637,-872.57,0.00011506,2]
[338129082,1726288259647,-500.0,0.00011506,2]
[338129083,1726288259657,-506.50466462,0.00011506,2]
[338129084,1726288259666,-154.07085293,0.00011506,2]
[338129085,1726288259675,-500.0,0.00011506,2]
[338129086,1726288259685,-503.82991985,0.00011506,2]
[338129087,1726288259695,-500.0,0.00011506,2]
[338129088,1726288259705,-151.0,0.00011506,2]
[338129089,1726288259715,-500.0,0.00011506,2]
[338129090,1726288259724,-500.0,0.00011506,2]
[338129091,1726288259734,-500.0,0.00011506,2]
[338129092,1726288259744,-1337.62,0.00011506,2]
[338129093,1726288259753,-500.0,0.00011506,2]
[338129094,1726288259763,-500.0,0.00011506,2]
[338129095,1726288259772,-500.0,0.00011506,2]
[338129096,1726288259781,-500.0,0.00011506,2]
[338129097,1726288259791,-500.0,0.00011506,2]
[338129098,1726288259800,-500.0,0.00011506,2]
[338129099,1726288259809,-500.0,0.00011506,2]
[338129100,1726288259818,-500.0,0.00011506,2]
[338129101,1726288259829,-500.0,0.00011506,2]
[338129102,1726288259839,-500.0,0.00011506,2]
[338129103,1726288259849,-504.81563442,0.00011506,2]
[338129104,1726288259858,-507.99894667,0.00011506,2]
[338129105,1726288259868,-500.0,0.00011506,2]
[338129106,1726288259877,-500.0,0.00011506,2]
[338129107,1726288259887,-500.0,0.00011506,2]
[338129108,1726288259896,-500.0,0.00011506,2]
[338129109,1726288259906,-501.3416671,0.00011506,2]
[338129110,1726288259915,-500.0,0.00011506,2]
[338129111,1726288259925,-322.11916327,0.00011506,2]
[338129112,1726288259935,-500.0,0.00011506,2]
[338129113,1726288259944,-500.0,0.00011506,2]
[338129114,1726288259953,-500.0,0.00011506,2]
[338129115,1726288259963,-505.14082182,0.00011506,2]
[338129116,1726288259972,-500.0,0.00011506,2]
[338129117,1726288259982,-500.0,0.00011506,2]
[338129118,1726288259991,-500.0,0.00011506,2]
[338129119,1726288260001,-500.0,0.00011506,2]
[338129120,1726288260010,-527.16046061,0.00011506,2]
[338129121,1726288260019,-502.93146895,0.00011506,2]
[338129122,1726288260029,-500.0,0.00011506,2]
[338129123,1726288260039,-613.50024238,0.00011506,2]
[338129124,1726288260048,-500.0,0.00011506,2]
[338129125,1726288260058,-858.33,0.00011506,2]
[338129126,1726288260067,-500.0,0.00011506,2]
[338129127,1726288260077,-500.0,0.00011506,2]
[338129128,1726288260086,-504.40937121,0.00011506,2]
[338129129,1726288260103,-504.73525729,0.00011506,2]
[338129130,1726288260116,-500.0,0.00011506,2]
[338129131,1726288260126,-500.0,0.00011506,2]
[338129132,1726288260136,-500.0,0.00011506,2]
[338129133,1726288260146,-500.0,0.00011506,2]
[338129134,1726288260156,-504.77192274,0.00011506,2]
[338129135,1726288260176,-502.24647297,0.00011506,2]
[338129136,1726288260186,-500.0,0.00011506,2]
[338129137,1726288260196,-500.0,0.00011506,2]
[338129138,1726288260208,-500.0,0.00011506,2]
[338129139,1726288260218,-500.0,0.00011506,2]
[338129140,1726288260228,-500.0,0.00011506,2]
[338129141,1726288260239,-503.43354937,0.00011506,2]
[338129142,1726288260249,-500.0,0.00011506,2]
[338129143,1726288260259,-500.0,0.00011506,2]
[338129144,1726288260270,-500.0,0.00011506,2]
[338129145,1726288260280,-500.0,0.00011506,2]
[338129146,1726288260291,-500.0,0.00011506,2]
[338129147,1726288260301,-165.124149,0.00011506,2]
[338129148,1726288260311,-165.124149,0.00011506,2]
[338129149,1726288260321,-328.380615,0.00011506,2]
[338129150,1726288260331,-500.0,0.00011506,2]
[338129151,1726288260341,-328.380615,0.00011506,2]
[338129152,1726288260352,-500.0,0.00011506,2]
[338129153,1726288260362,-165.124149,0.00011506,2]
[338129154,1726288260372,-520.18810583,0.00011506,2]
[338129155,1726288260383,-325.341971,0.00011506,2]
[338129156,1726288260392,-328.380615,0.00011506,2]
[338129157,1726288260402,-325.341971,0.00011506,2]
[338129158,1726288260416,-165.124149,0.00011506,2]
[338129159,1726288260426,-500.0,0.00011506,2]
[338129160,1726288260436,-328.380615,0.00011506,2]
[338129161,1726288260446,-500.0,0.00011506,2]
[338129162,1726288260456,-325.341971,0.00011506,2]
[338129163,1726288260465,-500.0,0.00011506,2]
[338129164,1726288260476,-325.341971,0.00011506,2]
[338129165,1726288260486,-500.0,0.00011506,2]
[338129166,1726288260496,-502.75567887,0.00011506,2]
[338129167,1726288260505,-500.0,0.00011506,2]
[338129168,1726288260515,-501.84124308,0.00011506,2]
[338129169,1726288260526,-500.0,0.00011506,2]
[338129170,1726288260536,-500.0,0.00011506,2]
[338129171,1726288260546,-500.0,0.00011506,2]
[338129172,1726288260555,-500.0,0.00011506,2]
[338129173,1726288260565,-502.64190081,0.00011506,2]
[338129174,1726288260574,-500.0,0.00011506,2]
[338129175,1726288260584,-503.8520108,0.00011506,2]
[338129176,1726288260594,-506.29849343,0.00011506,2]
[338129177,1726288260606,-513.58053255,0.00011506,2]
[338129178,1726288260615,-151.0,0.00011506,2]
[338129179,1726288260625,-151.0,0.00011506,2]
[338129180,1726288260635,-151.0,0.00011506,2]
[338129181,1726288260644,-500.0,0.00011506,2]
[338129182,1726288260653,-759.03,0.00011506,2]
[338129183,1726288260663,-500.0,0.00011506,2]
[338129184,1726288260673,-500.0,0.00011506,2]
[338129185,1726288260682,-500.13450356,0.00011506,2]
[338129186,1726288260693,-500.0,0.00011506,2]
[338129187,1726288260702,-500.0,0.00011506,2]
[338129188,1726288260711,-2617.46,0.00011506,2]
[338129189,1726288260721,-500.0,0.00011506,2]
[338129190,1726288260730,-500.0,0.00011506,2]
[338129191,1726288260740,-500.0,0.00011506,2]
[338129192,1726288260749,-500.0,0.00011506,2]
[338129193,1726288260758,-500.0,0.00011506,2]
[338129194,1726288260768,-500.0,0.00011506,2]
[338129195,1726288260777,-502.28496592,0.00011506,2]
[338129196,1726288260786,-500.0,0.00011506,2]
[338129197,1726288260796,-202.969333,0.00011506,2]
[338129198,1726288260806,-586.415355,0.00011506,2]
[338129199,1726288260816,-586.415355,0.00011506,2]
[338129200,1726288260827,-500.0,0.00011506,2]
[338129201,1726288260838,-202.969333,0.00011506,2]
[338129202,1726288260849,-500.98805693,0.00011506,2]
[338129203,1726288260861,-586.415355,0.00011506,2]
[338129204,1726288260871,-586.415355,0.00011506,2]
[338129205,1726288260882,-500.0,0.00011506,2]
[338129206,1726288260892,-500.0,0.00011506,2]
[338129207,1726288260901,-500.0,0.00011506,2]
[338129208,1726288260912,-500.0,0.00011506,2]
[338129209,1726288260921,-154.972171,0.00011506,2]
[338129210,1726288260931,-500.0,0.00011506,2]
[338129211,1726288260940,-507.73572629,0.00011506,2]
[338129212,1726288260949,-500.0,0.00011506,2]
[338129213,1726288260958,-506.48371069,0.00011506,2]
[338129214,1726288260968,-352.63179595,0.00011506,2]
[338129215,1726288261952,-502.71990525,0.00010958,2]
[338129216,1726288261965,-500.0,0.00010958,2]
[338129217,1726288261976,-457.28,0.00010959,2]
[338129218,1726288261988,-151.07500261,0.00011506,2]
[338129219,1726288262000,-500.0,0.00011506,2]
[338129220,1726288262011,-500.0,0.00011506,2]
[338129221,1726288262022,-500.0,0.00011506,2]
[338129222,1726288262033,-504.86789167,0.00011506,2]
[338129223,1726288262043,-500.0,0.00011506,2]
[338129224,1726288262054,-500.0,0.00011506,2]
[338129225,1726288262063,-500.0,0.00011506,2]
[338129226,1726288262074,-500.0,0.00011506,2]
[338129227,1726288262084,-500.0,0.00011506,2]
[338129228,1726288262095,-500.0,0.00011506,2]
[338129229,1726288262106,-151.0,0.00011506,2]
[338129230,1726288262117,-157.516704,0.00011506,2]
[338129231,1726288262128,-500.0,0.00011506,2]
[338129232,1726288262139,-501.93131741,0.00011506,2]
[338129233,1726288262151,-500.0,0.00011506,2]
[338129234,1726288262162,-500.0,0.00011506,2]
[338129235,1726288262172,-500.0,0.00011506,2]
[338129236,1726288262183,-500.0,0.00011506,2]
[338129237,1726288262193,-185.938237,0.00011506,2]
[338129238,1726288262204,-503.09637226,0.00011506,2]
[338129239,1726288262214,-500.0,0.00011506,2]
[338129240,1726288262224,-500.0,0.00011506,2]
[338129241,1726288262235,-500.0,0.00011506,2]
[338129242,1726288262246,-500.0,0.00011506,2]
[338129243,1726288262256,-151.0,0.00011506,2]
[338129244,1726288262265,-154.482858,0.00011506,2]
[338129245,1726288262275,-500.0,0.00011506,2]
[338129246,1726288262285,-500.0,0.00011506,2]
[338129247,1726288262297,-502.24906437,0.00011506,2]
[338129248,1726288262309,-503.28667895,0.00011506,2]
[338129249,1726288262321,-500.0,0.00011506,2]
[338129250,1726288262333,-500.0,0.00011506,2]
[338129251,1726288262343,-500.0,0.00011506,2]
[338129252,1726288262352,-500.0,0.00011506,2]
[338129253,1726288262362,-503.36837831,0.00011506,2]
[338129254,1726288262371,-500.0,0.00011506,2]
[338129255,1726288262381,-503.03568579,0.00011506,2]
[338129256,1726288262393,-502.10554136,0.00011506,2]
[338129257,1726288262403,-151.0,0.00011506,2]
[338129258,1726288262413,-151.0,0.00011506,2]
[338129259,1726288262422,-500.0,0.00011506,2]
[338129260,1726288262434,-500.0,0.00011506,2]
[338129261,1726288262445,-310.61973168,0.00011506,2]
[338129262,1726288262455,-501.08834239,0.00011506,2]
[338129263,1726288262465,-502.90241626,0.00011506,2]
[338129264,1726288262475,-500.0,0.00011506,2]
[338129265,1726288262487,-5361.21,0.00011506,2]
[338129266,1726288262496,-505.20143444,0.00011506,2]
[338129267,1726288262507,-331.86010775,0.00011506,2]
[338129268,1726288262517,-500.0,0.00011506,2]
[338129269,1726288262527,-500.0,0.00011506,2]
[338129270,1726288262536,-1342.53,0.00011506,2]
[338129271,1726288262546,-500.0,0.00011506,2]
[338129272,1726288262557,-500.0,0.00011506,2]
[338129273,1726288262568,-500.0,0.00011506,2]
[338129274,1726288262578,-500.0,0.00011506,2]
[338129275,1726288262588,-956.17,0.00011506,2]
[338129276,1726288262600,-500.0,0.00011506,2]
[338129277,1726288262819,-478.093966,0.00011506,2]
[338129278,1726288262832,-478.093966,0.00011506,2]
[338129279,1726288262842,-503.08704658,0.00011506,2]
[338129280,1726288262853,-500.0,0.00011506,2]
[338129281,1726288262863,-500.0,0.00011506,2]
[338129282,1726288262873,-478.093966,0.00011506,2]
[338129283,1726288262883,-199.825326,0.00011506,2]
[338129284,1726288262895,-478.093966,0.00011506,2]
[338129285,1726288262909,-199.825326,0.00011506,2]
[338129286,1726288262919,-500.0,0.00011506,2]
[338129287,1726288262929,-500.0,0.00011506,2]
[338129288,1726288262942,-199.825326,0.00011506,2]
[338129289,1726288262961,-199.825326,0.00011506,2]
[338129290,1726288262976,-771.92,0.00011506,2]
[338129291,1726288262987,-500.0,0.00011506,2]
[338129292,1726288262998,-1179.28,0.00011506,2]
[338129293,1726288263009,-579.84988611,0.00011506,2]
[338129294,1726288263019,-500.0,0.00011506,2]
[338129295,1726288263030,-502.40264313,0.00011506,2]
[338129296,1726288263040,-506.16971965,0.00011506,2]
[338129297,1726288263051,-501.78410465,0.00011506,2]
[338129298,1726288263062,-500.0,0.00011506,2]
[338129299,1726288263074,-500.0,0.00011506,2]
[338129300,1726288263085,-501.54601454,0.00011506,2]
[338129301,1726288263095,-337.35367128,0.00011506,2]
[338129302,1726288263104,-155.324845,0.00011506,2]
[338129303,1726288263115,-155.324845,0.00011506,2]
[338129304,1726288263125,-500.0,0.00011506,2]
[338129305,1726288263136,-500.0,0.00011506,2]
[338129306,1726288263146,-500.0,0.00011506,2]
[338129307,1726288263159,-155.324845,0.00011506,2]
[338129308,1726288263169,-538.69,0.00011506,2]
[338129309,1726288263180,-155.324845,0.00011506,2]
[338129310,1726288263191,-500.0,0.00011506,2]
[338129311,1726288263200,-500.0,0.00011506,2]
[338129312,1726288263210,-500.0,0.00011506,2]
[338129313,1726288263221,-501.02156009,0.00011506,2]
[338129314,1726288263231,-500.0,0.00011506,2]
[338129315,1726288263242,-186.05425676,0.00011506,2]
[338129316,1726288263252,-500.0,0.00011506,2]
[338129317,1726288263262,-500.0,0.00011506,2]
[338129318,1726288263272,-729.42,0.00011506,2]
[338129319,1726288263282,-151.435705,0.00011506,2]
[338129320,1726288263293,-500.0,0.00011506,2]
[338129321,1726288263304,-500.0,0.00011506,2]
[338129322,1726288263315,-500.0,0.00011506,2]
[338129323,1726288263325,-500.0,0.00011506,2]
[338129324,1726288263335,-500.0,0.00011506,2]
[338129325,1726288263346,-500.0,0.00011506,2]
[338129326,1726288263356,-505.02640824,0.00011506,2]
[338129327,1726288263366,-2382.12426089,0.00011506,2]
[338129328,1726288275088,-1781.75573911,0.00011506,2]
[338129329,1726288275098,-500.0,0.00011506,2]
[338129330,1726288275108,-500.0,0.00011506,2]
[338129331,1726288275118,-500.0,0.00011506,2]
[338129332,1726288275128,-500.0,0.00011506,2]
[338129333,1726288275140,-500.0,0.00011506,2]
[338129334,1726288275150,-500.0,0.00011506,2]
[338129335,1726288275162,-466.572096,0.00011506,2]
[338129336,1726288275173,-500.0,0.00011506,2]
[338129337,1726288275182,-466.572096,0.00011506,2]
[338129338,1726288275192,-509.98305529,0.00011506,2]
[338129339,1726288275204,-500.0,0.00011506,2]
[338129340,1726288275215,-500.0,0.00011506,2]
[338129341,1726288275228,-17291.4,0.00011506,2]
[338129342,1726288275238,-398.76412517,0.00011506,2]
[338129343,1726288275247,-466.572096,0.00011506,2]
[338129344,1726288275257,-500.0,0.00011506,2]
[338129345,1726288275266,-466.572096,0.00011506,2]
[338129346,1726288275276,-500.0,0.00011506,2]
[338129347,1726288275286,-500.0,0.00011506,2]
[338129348,1726288275298,-502.10690209,0.00011506,2]
[338129349,1726288275309,-500.0,0.00011506,2]
[338129350,1726288275321,-238.59392,0.00011506,2]
[338129351,1726288275331,-238.59392,0.00011506,2]
[338129352,1726288275341,-600.45797364,0.00011506,2]
[338129353,1726288275352,-835.92147,0.00011506,2]
[338129354,1726288275362,-835.92147,0.00011506,2]
[338129355,1726288275374,-238.59392,0.00011506,2]
[338129356,1726288275387,-500.0,0.00011506,2]
[338129357,1726288275400,-238.59392,0.00011506,2]
[338129358,1726288275411,-500.0,0.00011506,2]
[338129359,1726288275427,-500.0,0.00011506,2]
[338129360,1726288275438,-334.56460843,0.00011506,2]
[338129361,1726288275450,-835.92147,0.00011506,2]
[338129362,1726288275464,-835.92147,0.00011506,2]
[338129363,1726288275474,-197.074544,0.00011506,2]
[338129364,1726288275486,-500.0,0.00011506,2]
[338129365,1726288275495,-500.0,0.00011506,2]
[338129366,1726288275505,-500.0,0.00011506,2]
[338129367,1726288275517,-500.0,0.00011506,2]
[338129368,1726288275529,-500.0,0.00011506,2]
[338129369,1726288275540,-500.0,0.00011506,2]
[338129370,1726288275550,-500.0,0.00011506,2]
[338129371,1726288275560,-500.0,0.00011506,2]
[338129372,1726288275571,-500.0,0.00011506,2]
[338129373,1726288275584,-2999.39,0.00011506,2]
[338129374,1726288275595,-500.0,0.00011506,2]
[338129375,1726288275607,-500.0,0.00011506,2]
[338129376,1726288275622,-518.55433097,0.00011506,2]
[338129377,1726288275632,-500.0,0.00011506,2]
[338129378,1726288275644,-500.0,0.00011506,2]
[338129379,1726288275655,-500.0,0.00011506,2]
[338129380,1726288275668,-500.0,0.00011506,2]
[338129381,1726288275677,-537.77356176,0.00011506,2]
[338129382,1726288275688,-500.0,0.00011506,2]
[338129383,1726288275700,-500.0,0.00011506,2]
[338129384,1726288275764,-675.64,0.00011506,2]
[338129385,1726288275775,-500.0,0.00011506,2]
[338129386,1726288275784,-500.0,0.00011506,2]
[338129387,1726288275794,-500.0,0.00011506,2]
[338129388,1726288275807,-500.0,0.00011506,2]
[338129389,1726288275817,-623.26,0.00011506,2]
[338129390,1726288275827,-500.0,0.00011506,2]
[338129391,1726288275839,-500.0,0.00011506,2]
[338129392,1726288275850,-503.91045888,0.00011506,2]
[338129393,1726288275862,-500.0,0.00011506,2]
[338129394,1726288275873,-500.0,0.00011506,2]
[338129395,1726288275883,-500.0,0.00011506,2]